Workbook

Sheet Arkusz1
A2: ………………………………………………
A3: (pieczęć Wykonawcy/Wykonawców) Załącznik nr 1 do Zaproszenia do składania ofert
A4: nr sprawy: RDK.26.08.2024.KK
C5: KOSZTORYS OFERTOWY
A6: Remont pokrycia dachowego oraz montaż dwóch rekuperatorów w pomieszczeniach biurowych w obiekcie administracyjno - garażowym w Rejonu Dróg Wojewódzkich w Kartuzach
A7: Poz | B7: Podstawa | C7: ASORTYMENT ROBÓT | D7: Jm | E7: Ilość | F7: Cena | G7: Wartość [zł]
A8: Koszt. | F8: Jedn. [zł] | G8: kol 5x6
A9: 1 | B9: 2 | C9: 3 | D9: 4 | E9: 5 | F9: 6 | G9: 7
A10: Remont pokrycia dachowego z ułożeniem dodatkowej warstwy papy, montażem kominków
A11: 1 | B11: KNR 0-22 0528-01 | C11: Renowacja starych dachów krytych papą przy użyciu papy termozgrzewalnej - przygotowanie podłoża | D11: m2 | E11: 24.00* 14.00+ 12.00*6.00 = 408,00
A12: 2 | B12: KNR 4-01 0519-03 | C12: Drobne naprawy pokrycia papowego polegające na wstawieniu łat do 1.0 m2 - z papy termozgrzewalnej | D12: szt. | E12: 10.00
A13: 3 | B13: KNR 2-02 0602-01 | C13: Izolacje przeciwwilgociowe powłokowe bitumiczne poziome - wykonywane na zimno z emulsji asfaltowej - gruntowanie istniejącej papy | D13: m2 | E13: 408.00
A14: 4 | B14: KNR 0-22 0528-02 | C14: Renowacja starych dachów krytych papą przy użyciu papy termozgrzewalnej - krycie | D14: m2 | E14: 408.00
A15: 5 | B15: KNR 0-22 0529-04 | C15: Obróbki dachowe murów ogniowych pasem papy szer. 30 cm przy zastosowaniu papy termozgrzewalnej | D15: mb | E15: 14.00+22.00 = 36,00
A16: 6 | B16: KNR 0-22 0529-05 | C16: Obróbki dachowe murów ogniowych pasem papy przy zastosowaniu papy termozgrzewalnej - dodatek za każde 5 cm szer. ponad 30 cm | D16: mb | E16: 14.00+22.00 = 36,00
A17: 7 | B17: KNR-W 2-15 0213-06 | C17: Rury wywiewne z PVC - systemowe kominki odpowietrzające pokrycie dachowe | D17: szt. | E17: 4.00
A18: 8 | B18: NNRNKB 202 0541-01 | C18: (z.VI) Obróbki blacharskie z blachy powlekanej o szer.w rozwinięciu do 25 cm - montaż kaplistwy na połączeniu niższej części budynku z wyższą | D18: m2 | E18: 14.00*0.20 = 2,80
A19: Montaż rekuperatorów ściennych np typu REQU R+ 160 EBERG lub równoważne
A20: 9 | B20: KNR 4-01 0333-10 | C20: Przebicie otworów w ścianach z cegieł o grubości 1 1/2 ceg. na zaprawie cementowo-wapiennej | D20: szt. | E20: 2.00
A21: 10 | B21: Kalkulacja własna | C21: Montaż rekuperatorów ściannych np REQU R+ 160 EBERG lub równoważne z doprowadzeniem i podłączeniem instalacji elektrycznej, obróbką wykonanego otworu na gotowo i malowaniem ściany od wewnątrz pomieszczenia i na zewnątrz | D21: szt. | E21: 2.00
A22: Utylizacja materiałów z rozbiórki
A23: 11 | B23: KNR 4-01 0108-09 | C23: Wywiezienie gruzu spryzmowanego samochodami skrzyniowymi - analogia - wywóz i utylizacja materiałów z rozbiórki | D23: m3 | E23: 0.50
C25: (cena bez podatku VAT)
C26: Podatek VAT 23 %
C27: OGÓŁEM
C28: (cena oferowana z podatkiem VAT)
A29: słownie brutto: | C29: =Słownie(G27) -> zero złotych zero groszy
A31: __________________ dnia __.__.2024r.
E32: …………………………...………………..
C33: (podpis Wykonawcy/Pełnomocnika)

Sheet Arkusz2 (hidden)
B3: 0 | C3: 6 | H3: 0 | I3: 6.1 | L3: 0 | M3: 6.1
B4: 50 | C4: 5.9 | E4: =(B4-B3)*(C4+C3)/2 -> 297.5 | H4: 50 | I4: 5.8 | J4: =(H4-H3)*(I4+I3)/2 -> 297.5 | L4: 50 | M4: 5.9 | N4: =(L4-L3)*(M4+M3)/2 -> 300
B5: 100 | C5: 6 | E5: =(B5-B4)*(C5+C4)/2 -> 297.5 | H5: 100 | I5: 6 | J5: =(H5-H4)*(I5+I4)/2 -> 295 | L5: 100 | M5: 6 | N5: =(L5-L4)*(M5+M4)/2 -> 297.5
B6: 150 | C6: 5.9 | E6: 297.5 | H6: 150 | I6: 5.9 | J6: 297.5 | L6: 150 | M6: 5.9 | N6: 297.5
B7: 200 | C7: 5.8 | E7: 292.5 | H7: 200 | I7: 5.8 | J7: 292.5 | L7: 200 | M7: 5.8 | N7: 292.5
B8: 250 | C8: 6 | E8: 295 | H8: 250 | I8: 6 | J8: 295 | L8: 250 | M8: 6 | N8: 295
B9: 300 | C9: 6 | E9: 300 | H9: 300 | I9: 5.8 | J9: 295 | L9: 300 | M9: 6.1 | N9: 302.5
B10: 350 | C10: 6 | E10: 300 | H10: 350 | I10: 6 | J10: 295 | L10: 350 | M10: 6 | N10: 302.5
B11: 400 | C11: 6.2 | E11: 305 | H11: 400 | I11: 6 | J11: 300 | L11: 400 | M11: 6.1 | N11: 302.5
B12: 450 | C12: 6 | E12: 305 | H12: 450 | I12: 6 | J12: 300 | L12: 450 | M12: 5.9 | N12: 300
B13: 500 | C13: 6 | E13: 300 | H13: 500 | I13: 6 | J13: 300 | L13: 500 | M13: 6.1 | N13: 300
B14: 500 | E14: =(B14-B13)*(C14+C13)/2 -> 0 | H14: 550 | I14: 6.2 | J14: 305 | L14: 550 | M14: 6 | N14: 302.5
E15: 0 | H15: 600 | I15: 6 | J15: 305 | L15: 600 | M15: 6.2 | N15: 305
E16: 0 | H16: 650 | I16: 5.9 | J16: 297.5 | L16: 650 | M16: 6 | N16: 305
E17: 0 | H17: 700 | I17: 6 | J17: 297.5 | L17: 700 | M17: 6.1 | N17: 302.5
E18: 0 | H18: 750 | I18: 6 | J18: 300 | L18: 750 | M18: 6 | N18: 302.5
E19: 0 | H19: 800 | I19: 5.8 | J19: 295 | L19: 800 | M19: 5.9 | N19: 297.5
E20: 0 | H20: 850 | I20: 5.9 | J20: 292.5 | L20: 850 | M20: 6.4 | N20: 307.5
E21: 0 | H21: 900 | I21: 5.9 | J21: 295 | L21: 900 | M21: 6.6 | N21: 325
E22: 0 | H22: 933 | I22: 6 | J22: 196.35 | L22: 950 | M22: 6.6 | N22: 330
E23: 0 | I23: =AVERAGE(I3:I22) -> 5.955 | J23: =SUM(J4:J22) -> 5551.35 | L23: 1000 | M23: 6.5 | N23: 327.5
E24: =SUM(E4:E23) -> 2990 | M24: =AVERAGE(M4:M23) -> 6.105 | N24: =SUM(N4:N23) -> 6095
M25: =1000*M24 -> 6105
C26: =AVERAGE(C3:C23) -> 5.981818182
C27: =500*C26 -> 2990.909091
